Workbook

Sheet Risk
D3: Crop | G3: Production | I3: Index | J3: Low | N3: Med | R3: High
D4: Planting Date | E4: 2021-12-20 | H4: Aflatoxin | I4: =AFLTXN_RiskIndex -> 435 | J4: 435 | K4: 435 | L4: 435 | M4: 435 | N4: 435 | O4: 435 | P4: 435 | Q4: 435 | R4: 435 | S4: 435 | T4: 435 | U4: 435
D5: Plants per 1m of Row | E5: 5 plants (20 cm spacing) | H5: Yield | I5: =YLD_RiskIndex -> 535 | J5: 535 | K5: 535 | L5: 535 | M5: 535 | N5: 535 | O5: 535 | P5: 535 | Q5: 535 | R5: 535 | S5: 535 | T5: 535 | U5: 535
D6: Seed Inoculant | E6: No
D7: Variety | E7: Virginia Type | G7: Red Dots - Change practices to eliminate. Yellow Dots - Consider adjusting practices to reduce risk. Green Dots - Risk is acceptable for selected practices.
D8: Field
D9: Crop Rotation | E9: Groundnut : Groundnut : Groundnut
D10: Fertilizer | E10: None
D11: Gypsum at Bloom | E11: No
D12: Soil Fertility | E12: Low
D13: Soil pH | E13: 5.6
D14: Tillage | E14: Hand dug and ridging
D15: Harvest
D16: Digging Timimg | E16: Optimum
D17: Drying | E17: Tarpulin
D18: Method | E18: Hand dug with hoe
D19: Pest Management
D20: Aphid Spray | E20: No
D21: Bird Protection | E21: No
D22: Fungicides | E22: 1 Spray
D23: Rodent Protection | E23: No
D24: Weed Control | E24: 2 hand weedings during season
D25: Storage
D26: Groundnut Moisture | E26: Less than 10%
D27: Method | E27: Sealed
D28: Temperature | E28: Lower than 28 °C

Sheet Crop (hidden)
A1: Crop | B1: Groundnut
A3: Planting Season | B3: Date | C3: Month | D3: Day of Month | E3: Day of Year
A4: Start | B4: 2021-01-01 | C4: =MONTH(B4) -> 1 | D4: =DAY(B4) -> 1 | E4: =B4-DATE(YEAR(B4),1,1)+1 -> 1
A5: End | B5: 2021-12-31 | C5: =MONTH(B5) -> 12 | D5: =DAY(B5) -> 31 | E5: =B5-DATE(YEAR(B5),1,1)+1 -> 365
A7: Title | B7: Groundnut Risk Tool - Malawi
A8: Subtitle
A9: Credit Lines | B9: Justus Chintu, Wezi Mhango and Andrew Goodman
B10: DARS Chitedze
B11: Lilongwe Univ. of Agriculture and Nature Resources
B12: Horizon Farms
B13: Dave Hoisington and Jamie Rhoads
B14: Peanut Innovation Lab
B15: Rick Brandenburg, David Jordan, Dominic Reisig and Greg Buol
B16: North Carolina State University, Raleigh NC

Sheet Log_TPL (hidden)
A1: Field and Production Information
S2: Input Selection Lists
D3: Crop | E3: =Crop -> Groundnut | S3: Tillage_Pracs | T3: Land_Plaster_Meth | U3: Land_Plaster_Type | V3: Digging_Eq | W3: Combine | X3: Moisture_Status | Y3: Control_Rating
D4: Field Area (ha)
S5: Bed | T5: Banded | U5: Bagged | V5: 2 Row Digger | W5: 2 Row Pull Type Combine | X5: Dry | Y5: No Control (<5%)
D6: Soil | E6: Mapped Series | F6: % of Field | S6: Chisel | T6: Broadcast | U6: Bulk | V6: 4 Row Digger | W6: 4 Row Pull Type Combine | X6: Adequate | Y6: Poor (5% to 20%)
S7: Cultivate | T7: Other | U7: Granular | V7: 6 Row Digger | W7: 6 Row Pull Type Combine | X7: Wet | Y7: Low (20% to 50%)
S8: Disk | U8: Other | V8: Other | W8: 6 Row Self-Propelled Combine | Y8: Moderate (50% to 80%)
S9: Moldboard Plow | W9: 8 Row Self-Propelled Combine | Y9: High (80% to 90%)
S10: No Till | W10: Other | Y10: Excellent (90% to 100%)
S11: Other
S12: Rip
D13: Tillage Practice | E13: Date | F13: Equipment | S13: Rip and Bed
S14: Strip Till
D18: Lime Applications | E18: Date | F18: Rate (kg/ha)
D19: Current Year
D20: Last Year
D22: Seed Inoculation | E22: Date | F22: Inoculant
D25: Fertilizer | E25: Date | F25: N | G25: P2O5 | H25: K2O | I25: B | J25: Cu | K25: Fe | L25: Mn | M25: Mo | N25: S | O25: Zn
F26: kg/ha
D32: Land Plaster | E32: Date | F32: Trade Name | G32: Type | H32: Method | I32: Rate (kg/ha)
D35: Herbicides | E35: Date | F35: Weeds | G35: Weed Size | H35: Trade Name | I35: Rate | J35: Trade Name | K35: Rate | L35: Trade Name | M35: Rate | N35: Trade Name | O35: Rate | P35: Evaluation Date | Q35: Control Rating
D36: Burndown
D37: Preplant
D38: Preemergence
D39: At Cracking
D40: First Postemergence
D41: Second Postemergence
D42: Third Postemergence
D44: Leaf Spot Program | E44: Date | F44: Severity | G44: Trade Name | H44: Rate | I44: Trade Name | J44: Rate | K44: Trade Name | L44: Rate | M44: Evaluation Date | N44: Control Rating
D58: Pest Treaments | E58: Date | F58: Severity | G58: Trade Name | H58: Rate | I58: Trade Name | J58: Rate | K58: Evaluation Date | L58: Control Rating
D59: Sclerotina Blight
D61: CBR
D63: Southern Corn Rootworm
D65: Spider Mites
D68: Insecticide Treaments | E68: Date | F68: Pest | G68: Severity | H68: Trade Name | I68: Rate | J68: Trade Name | K68: Rate | L68: Evaluation Date | M68: Control Rating
D69: In-furrow
D70: Foliar
D77: Development Dates | E77: Date
D78: Emergence
D79: First Flower
D80: First Peg
D81: Last Flower
D83: Development Moisture Status
D84: Planting to Emergence
D85: Emergence to Flowering
D86: Flowering to Pod Formation
D87: Pod Formation to Harvest
D89: Weeds at Harvest
D98: Pod Blasting Data | E98: Date | F98: White | G98: Yellow | H98: Orange | I98: Brown | J98: Black | K98: White | L98: Yellow | M98: Orange | N98: Brown | O98: Black | P98: Brown/Black
F99: Pod Count | K99: Percentage(%)
K100: =IF(SUM($F100:$J100)=0,NA(),F100/(SUM($F100:$J100))) ->  | L100: =IF(SUM($F100:$J100)=0,NA(),G100/(SUM($F100:$J100))) ->  | P100: =N100+O100 -> 
P101: =N101+O101 -> 
D105: Digging | E105: Date | F105: Equipment
D108: Harvest | E108: Date | F108: Equipment
D111: Yield Goal (kg/ha)
D112: Yield (kg/ha)
D113: Selling Price (MK/kg)
D115: Grading Results | E115: Grams (gr) | F115: Percentage (%)
D116: Foreign Material Sample
D117: Foreign Material | F117: =IFERROR(E117/E116,0) -> 0
D118: LSK | F118: =IFERROR(E118/E116,0) -> 0
D119: Moisture
D121: Cleaned Sample
D122: Fancy | F122: =IFERROR(E122/E121,0) -> 0
D123: Kernels Riding ELK Screen
D124: Total ELK Damage
D125: Net ELK | E125: =E123-E124 -> 0 | F125: =IFERROR(E125/E121,0) -> 0
D126: Kernels Riding Prescribed Screen
D128: Total KRS
D129: Damage KRS
D130: SMKRS | E130: =E128-E129 -> 0 | F130: =IFERROR(E130/E121,0) -> 0
D131: Sound Splits | F131: =IFERROR(E131/E121,0) -> 0
D132: Total SMK | F132: =F130+F131 -> 0
D133: Other Kernels | F133: =IFERROR(E133/E121,0) -> 0
D134: Damage Splits
D135: Total Damage | F135: =IFERROR(E135/E121,0) -> 0
D136: Total Kernels | F136: =F132+F133+F134+F135 -> 0
D137: Hulls | F137: =IFERROR(E137/E121,0) -> 0
D138: Total Kernels & Halls | F138: =F136+F137 -> 0
D139: Freeze Damage | F139: =IFERROR(E139/E121,0) -> 0
D140: Concealed RMD | F140: =IFERROR(E140/E121,0) -> 0
D141: Remarks
D144: Rainfall/Irrigation | E144: Date | F144: Amount (mm) | G144: Month | I144: Month | J144: Amount (mm)
G145: =IF(ISBLANK(E145),"",TEXT(E145,"mmm")) ->  | I145: Jan | J145: =SUMIF(G$145:G$244,"=" & I145,F$145:F$244) -> 0
G146: =IF(ISBLANK(E146),"",TEXT(E146,"mmm")) ->  | I146: Feb | J146: =SUMIF(G$145:G$244,"=" & I146,F$145:F$244) -> 0
I147: Mar | J147: 0
I148: Apr | J148: 0
I149: May | J149: 0
I150: Jun | J150: 0
I151: Jul | J151: 0
I152: Aug | J152: 0
I153: Sep | J153: 0
I154: Oct | J154: 0
I155: Nov | J155: 0
I156: Dec | J156: 0
G210: =IF(ISBLANK(E210),"",TEXT(E210,"mmm")) -> 

Sheet Pests (hidden)
A1: PestType | B1: Pest | C1: PestID
A2: Production | B2: Aflatoxin | C2: AFLTXN
A3: Production | B3: Yield | C3: YLD

Sheet Lists (hidden)
A1: Category | B1: Category_Pest | C1: CategoryID | D1: Category_List | E1: Category_List_Type | F1: Months | G1: Land_Area_Units | H1: Crop\Variety | I1: Crop\Plants_per_1m_of_Row | J1: Crop\Seed_Inoculant | K1: Field\Crop_Rotation | L1: Field\Fertilizer | M1: Field\Soil_pH | N1: Field\Tillage | O1: Harvest\Digging_Timimg | P1: Harvest\Drying | Q1: Crop\Planting_Date | R1: Storage\Groundnut_Moisture | S1: Storage\Temperature | T1: Storage\Method | U1: Pest_Management\Aphid_Spray | V1: Pest_Management\Bird_Protection | W1: Pest_Management\Rodent_Protection | X1: Pest_Management\Weed_Control | Y1: Pest_Management\Fungicides | Z1: Field\Gypsum_at_Bloom | AA1: Field\Soil_Fertility | AB1: Harvest\Method
A2: Crop\Planting_Date | C2: Crop\Planting_Date | D2: Crop\Planting_Date | E2: Date | F2: (01) January | G2: ac | H2: Spanish | I2: 01|5 plants (20 cm spacing) | J2: No | K2: Groundnut : Groundnut : Groundnut | L2: 01|None | M2: 4.4 or lower | N2: Flat Beds (Conventional) | O2: 01|21 Days Early | P2: Cemented floor | Q2: 001 to 015 | R2: 01|Less than 10% | S2: 01|Lower than 28 °C | T2: Sealed | U2: No | V2: No | W2: No | X2: 01|1 hand weeding during season | Y2: 01|None | Z2: No | AA2: 01|Low | AB2: 01|Hand pulled
A3: Crop\Plants_per_1m_of_Row | C3: Crop\Plants_per_1m_of_Row | D3: Crop\Plants_per_1m_of_Row | E3: Single | F3: (02) February | G3: ha | H3: Spanish (GRDR) | I3: 02|7 plants (15 cm spacing) | J3: Yes | K3: Groundnut : Maize : Groundnut | L3: 02|50 kg/ha (Yara Legume) | M3: 4.5 to 5.0 | N3: Hand dug and ridging | O3: 02|14 Days Early | P3: Ground | Q3: 016 to 031 | R3: 02|10 to 15% | S3: 02|28 to 32 °C | T3: Traditional | U3: Yes | V3: Yes | W3: Yes | X3: 02|2 hand weedings during season | Y3: 02|1 Spray | Z3: Yes | AA3: 02|Moderate | AB3: 02|Hand dug with hoe
A4: Crop\Seed_Inoculant | C4: Crop\Seed_Inoculant | D4: Crop\Seed_Inoculant | E4: Single | F4: (03) March | H4: Spanish (GRDR,LSR) | I4: 03|10 plants (10 cm spacing, optimum) | K4: Groundnut : Tobacco : Groundnut | L4: 03|100 kg/ha (Yara Legume) | M4: 5.1 to 5.5 | N4: Plough and hand ridging | O4: 03|7 Days Early | P4: Tarpulin | Q4: 032 to 304 | R4: 03|Greater than 15% | S4: 03|Higher than 32 °C | X4: 03|3 hand weedings during season | Y4: 03|2 Sprays | AA4: 03|High | AB4: 03|Plow/Mechanical digger
A5: Crop\Variety | C5: Crop\Variety | D5: Crop\Variety | E5: Single | F5: (04) April | H5: Spanish (LSR) | K5: Maize : Maize : Groundnut | L5: 04|150 kg/ha (Yara Legume) | M5: 5.6 to 6.9 | N5: Plough and harrow (Improved) | O5: 04|Optimum | Q5: 305 to 319 | X5: 04|Pre herbicides followed by 1 hand weeding | Y5: 04|3 Sprays
A6: Field\Crop_Rotation | C6: Field\Crop_Rotation | D6: Field\Crop_Rotation | E6: Single | F6: (05) May | H6: Virginia Type | K6: Maize : Soybean : Groundnut | L6: 05|200 kg/ha (Yara Legume) | M6: 7.0 or higher | O6: 05|7 Days Late | Q6: 320 to 334 | X6: 05|Post herbicides followed by 1 hand weeding
A7: Field\Fertilizer | C7: Field\Fertilizer | D7: Field\Fertilizer | E7: Single | F7: (06) June | H7: Virginia Type (GRDR) | K7: Maize : Tobacco : Groundnut | O7: 06|14 Days Late | Q7: 335 to 349
A8: Field\Gypsum_at_Bloom | C8: Field\Gypsum_at_Bloom | D8: Field\Gypsum_at_Bloom | E8: Single | F8: (07) July | H8: Virginia Type (GRDR,LSR) | K8: Soybean : Groundnut : Groundnut | O8: 07|21 Days Late | Q8: 350 to 365
A9: Field\Soil_Fertility | C9: Field\Soil_Fertility | D9: Field\Soil_Fertility | E9: Single | F9: (08) August | H9: Virginia Type (LSR) | K9: Soybean : Maize : Groundnut
A10: Field\Soil_pH | C10: Field\Soil_pH | D10: Field\Soil_pH | E10: pH | F10: (09) September | K10: Soybean : Soybean : Groundnut
A11: Field\Tillage | C11: Field\Tillage | D11: Field\Tillage | E11: Single | F11: (10) October | K11: Tobacco : Maize : Groundnut
A12: Harvest\Digging_Timimg | C12: Harvest\Digging_Timimg | D12: Harvest\Digging_Timimg | E12: Single | F12: (11) November
A13: Harvest\Drying | C13: Harvest\Drying | D13: Harvest\Drying | E13: Single | F13: (12) December
A14: Harvest\Method | C14: Harvest\Method | D14: Harvest\Method | E14: Single
A15: Pest_Management\Aphid_Spray | C15: Pest_Management\Aphid_Spray | D15: Pest_Management\Aphid_Spray | E15: Single
A16: Pest_Management\Bird_Protection | C16: Pest_Management\Bird_Protection | D16: Pest_Management\Bird_Protection | E16: Single
A17: Pest_Management\Fungicides | C17: Pest_Management\Fungicides | D17: Pest_Management\Fungicides | E17: Single
A18: Pest_Management\Rodent_Protection | C18: Pest_Management\Rodent_Protection | D18: Pest_Management\Rodent_Protection | E18: Single
A19: Pest_Management\Weed_Control | C19: Pest_Management\Weed_Control | D19: Pest_Management\Weed_Control | E19: Single
A20: Storage\Groundnut_Moisture | C20: Storage\Groundnut_Moisture | D20: Storage\Groundnut_Moisture | E20: Single
A21: Storage\Method | C21: Storage\Method | D21: Storage\Method | E21: Single
A22: Storage\Temperature | C22: Storage\Temperature | D22: Storage\Temperature | E22: Single

Sheet Costs (hidden)
A1: Land Area Units | B1: ha | H1: =Cost_Header -> Cost (MK/ha) | K1: =CONCATENATE("Person Hours (hrs/",sel_Land_Area_Units,")") -> Person Hours (hrs/ha)
A2: Category | B2: Item | C2: =CONCATENATE("Cost (MK/",sel_Land_Area_Units,")") -> Cost (MK/ha) | D2: Multiplier | E2: =CONCATENATE("Person Hours (hrs/",sel_Land_Area_Units,")") -> Person Hours (hrs/ha) | G2: Category | H2: Max | I2: Min | J2: Sel | K2: Max | L2: Min | M2: Sel | N2: Selection
A3: Base_Cost | C3: 0 | E3: 0 | G3: Base_Cost | H3: =Cost_Base -> 0 | I3: =Cost_Base -> 0 | J3: =Cost_Base -> 0 | K3: =PersonHours_Base -> 0 | L3: =PersonHours_Base -> 0 | M3: =PersonHours_Base -> 0
A4: Crop\Plants_per_1m_of_Row | B4: 5 plants (20 cm spacing) | D4: 0.5 | E4: 35 | G4: Crop\Seed_Inoculant | H4: =calcCostMax(G4,Category) -> 16130 | I4: =calcCostMin(G4) -> 0 | J4: =calcCost(G4,N4,Category) -> 0 | K4: =calcPersonHrsMax(G4,Category) -> 1 | L4: =calcPersonHrsMin(G4) -> 0 | M4: =calcPersonHrs(G4,N4,Category) -> 0 | N4: =CONCATENATE(IF(ISBLANK(sel_Crop\Seed_Inoculant),"",sel_Crop\Seed_Inoculant)) -> No
A5: Crop\Plants_per_1m_of_Row | B5: 7 plants (15 cm spacing) | D5: 0.7 | E5: 45 | G5: Crop\Variety | Crop\Plants_per_1m_of_Row | H5: 161290 | I5: 56450 | J5: 80645 | K5: 55 | L5: 35 | M5: 35 | N5: =CONCATENATE(IF(ISBLANK(sel_Crop\Variety),"",sel_Crop\Variety)," | ",IF(ISBLANK(sel_Crop\Plants_per_1m_of_Row),"",sel_Crop\Plants_per_1m_of_Row)) -> Virginia Type | 5 plants (20 cm spacing)
A6: Crop\Plants_per_1m_of_Row | B6: 10 plants (10 cm spacing, optimum) | D6: 1 | E6: 55 | G6: Field\Fertilizer | H6: 96800 | I6: 0 | J6: 0 | K6: 18 | L6: 0 | M6: 0 | N6: =CONCATENATE(IF(ISBLANK(sel_Field\Fertilizer),"",sel_Field\Fertilizer)) -> None
A7: Crop\Seed_Inoculant | B7: No | C7: 0 | E7: 0 | G7: Field\Gypsum_at_Bloom | H7: 48400 | I7: 0 | J7: 0 | K7: 12 | L7: 0 | M7: 0 | N7: =CONCATENATE(IF(ISBLANK(sel_Field\Gypsum_at_Bloom),"",sel_Field\Gypsum_at_Bloom)) -> No
A8: Crop\Seed_Inoculant | B8: Yes | C8: 16130 | E8: 1 | G8: Field\Soil_pH | H8: 120900 | I8: 0 | J8: 80600 | K8: 21 | L8: 0 | M8: 18 | N8: =CONCATENATE(IF(ISBLANK(sel_Field\Soil_pH),"",sel_Field\Soil_pH)) -> 5.6
A9: Crop\Variety | B9: Spanish | C9: 112900 | G9: Field\Tillage | H9: 40300 | I9: 8060 | J9: 40300 | K9: 5 | L9: 5 | M9: 50 | N9: =CONCATENATE(IF(ISBLANK(sel_Field\Tillage),"",sel_Field\Tillage)) -> Hand dug and ridging
A10: Crop\Variety | B10: Spanish (GRDR) | C10: 112900 | G10: Harvest\Drying | H10: 40300 | I10: 0 | J10: 16130 | K10: 0 | L10: 0 | M10: 0 | N10: =CONCATENATE(IF(ISBLANK(sel_Harvest\Drying),"",sel_Harvest\Drying)) -> Tarpulin
A11: Crop\Variety | B11: Spanish (GRDR,LSR) | C11: 112900 | G11: Harvest\Method | H11: 24180 | I11: 8060 | J11: 24180 | K11: 5 | L11: 5 | M11: 30 | N11: =CONCATENATE(IF(ISBLANK(sel_Harvest\Method),"",sel_Harvest\Method)) -> Hand dug with hoe
A12: Crop\Variety | B12: Spanish (LSR) | C12: 112900 | G12: Pest_Management\Aphid_Spray | H12: 12100 | I12: 0 | J12: 0 | K12: 12 | L12: 0 | M12: 0 | N12: =CONCATENATE(IF(ISBLANK(sel_Pest_Management\Aphid_Spray),"",sel_Pest_Management\Aphid_Spray)) -> No
A13: Crop\Variety | B13: Virginia Type | C13: 161290 | G13: Pest_Management\Bird_Protection | H13: 16130 | I13: 0 | J13: 0 | K13: 12 | L13: 0 | M13: 0 | N13: =CONCATENATE(IF(ISBLANK(sel_Pest_Management\Bird_Protection),"",sel_Pest_Management\Bird_Protection)) -> No
A14: Crop\Variety | B14: Virginia Type (GRDR) | C14: 161290 | G14: Pest_Management\Fungicides | H14: 36300 | I14: 0 | J14: 12100 | K14: 36 | L14: 0 | M14: 12 | N14: =CONCATENATE(IF(ISBLANK(sel_Pest_Management\Fungicides),"",sel_Pest_Management\Fungicides)) -> 1 Spray
A15: Crop\Variety | B15: Virginia Type (GRDR,LSR) | C15: 161290 | G15: Pest_Management\Rodent_Protection | H15: 16130 | I15: 0 | J15: 0 | K15: 12 | L15: 0 | M15: 0 | N15: =CONCATENATE(IF(ISBLANK(sel_Pest_Management\Rodent_Protection),"",sel_Pest_Management\Rodent_Protection)) -> No
A16: Crop\Variety | B16: Virginia Type (LSR) | C16: 161290 | G16: Pest_Management\Weed_Control | H16: 48390 | I16: 16130 | J16: 32260 | K16: 75 | L16: 40 | M16: 75 | N16: =CONCATENATE(IF(ISBLANK(sel_Pest_Management\Weed_Control),"",sel_Pest_Management\Weed_Control)) -> 2 hand weedings during season
A17: Field\Fertilizer | B17: None | C17: 0 | E17: 0 | G17: Storage\Method | H17: 32260 | I17: 4030 | J17: 32260 | K17: 4 | L17: 4 | M17: 8 | N17: =CONCATENATE(IF(ISBLANK(sel_Storage\Method),"",sel_Storage\Method)) -> Sealed
A18: Field\Fertilizer | B18: 50 kg/ha (Yara Legume) | C18: 24200 | E18: 9
A19: Field\Fertilizer | B19: 100 kg/ha (Yara Legume) | C19: 48400 | E19: 12 | G19: Total | H19: =SUM(H$3:H17) -> 709610 | I19: =SUM(I$3:I17) -> 92730 | J19: =IF(ISERROR(SUM(J$3:J17)),0,SUM(J$3:J17)) -> 318475 | K19: =SUM(K$3:K17) -> 268 | L19: =SUM(L$3:L17) -> 89 | M19: =IF(ISERROR(SUM(M$3:M17)),0,SUM(M$3:M17)) -> 228
A20: Field\Fertilizer | B20: 150 kg/ha (Yara Legume) | C20: 72600 | E20: 15
A21: Field\Fertilizer | B21: 200 kg/ha (Yara Legume) | C21: 96800 | E21: 18 | H21: =CONCATENATE("Cost Thresholds (MK/",sel_Land_Area_Units,")") -> Cost Thresholds (MK/ha) | K21: =CONCATENATE("Person Hour Thresholds (hrs/",sel_Land_Area_Units,")") -> Person Hour Thresholds (hrs/ha)
A22: Field\Gypsum_at_Bloom | B22: No | C22: 0 | E22: 0 | G22: High | H22: =Cost_Min + 0.66667*(Cost_Max-Cost_Min) -> 503985.3896 | K22: =PersonHours_Min + 0.66667*(PersonHours_Max-PersonHours_Min) -> 208.33393
A23: Field\Gypsum_at_Bloom | B23: Yes | C23: 48400 | E23: 12 | G23: Moderate | H23: =Cost_Min + 0.33333*(Cost_Max-Cost_Min) -> 298354.6104 | K23: =PersonHours_Min + 0.33333*(PersonHours_Max-PersonHours_Min) -> 148.66607
A24: Field\Soil_pH | B24: 4.4 or lower | C24: 0 | E24: 0
A25: Field\Soil_pH | B25: 4.5 to 5.0 | C25: 0 | E25: 12 | H25: =CONCATENATE("Cost Ranges (MK/",sel_Land_Area_Units,")") -> Cost Ranges (MK/ha) | K25: =CONCATENATE("Person Hour Ranges (hrs/",sel_Land_Area_Units,")") -> Person Hour Ranges (hrs/ha)
A26: Field\Soil_pH | B26: 5.1 to 5.5 | C26: 40300 | E26: 15 | G26: Base | H26: =Cost_Base -> 0 | K26: =PersonHours_Base -> 0
A27: Field\Soil_pH | B27: 5.6 to 6.9 | C27: 80600 | E27: 18 | G27: Low | H27: =Cost_Moderate-Cost_Base -> 298354.6104 | K27: =PersonHours_Moderate-PersonHours_Base -> 148.66607
A28: Field\Soil_pH | B28: 7.0 or higher | C28: 120900 | E28: 21 | G28: Moderate | H28: =Cost_High-Cost_Moderate -> 205630.7792 | K28: =PersonHours_High-PersonHours_Moderate -> 59.66786
A29: Field\Tillage | B29: Flat Beds (Conventional) | C29: 8060 | E29: 10 | G29: High | H29: =Cost_Max-Cost_High -> 205624.6104 | K29: =PersonHours_Max-PersonHours_High -> 59.66607
A30: Field\Tillage | B30: Hand dug and ridging | C30: 40300 | E30: 50
A31: Field\Tillage | B31: Plough and hand ridging | C31: 20150 | E31: 35 | G31: =CONCATENATE("Estimated Cost (MK/",sel_Land_Area_Units,"): ",TEXT(ROUNDUP(TRUNC(Cost,2),0),"#,##0")) -> Estimated Cost (MK/ha): 318,475
A32: Field\Tillage | B32: Plough and harrow (Improved) | C32: 8060 | E32: 5
A33: Harvest\Drying | B33: Cemented floor | C33: 40300
A34: Harvest\Drying | B34: Ground | C34: 0
A35: Harvest\Drying | B35: Tarpulin | C35: 16130
A36: Harvest\Method | B36: Hand pulled | C36: 16120 | E36: 20
A37: Harvest\Method | B37: Hand dug with hoe | C37: 24180 | E37: 30
A38: Harvest\Method | B38: Plow/Mechanical digger | C38: 8060 | E38: 5 | G38: =CONCATENATE("Estimated Person Hours (hrs/",sel_Land_Area_Units,"): ",ROUNDUP(TRUNC(PersonHours,2),0)) -> Estimated Person Hours (hrs/ha): 228
A39: Pest_Management\Aphid_Spray | B39: No | C39: 0 | E39: 0
A40: Pest_Management\Aphid_Spray | B40: Yes | C40: 12100 | E40: 12
A41: Pest_Management\Bird_Protection | B41: No | C41: 0 | E41: 0
A42: Pest_Management\Bird_Protection | B42: Yes | C42: 16130 | E42: 12
A43: Pest_Management\Fungicides | B43: None | C43: 0 | E43: 0
A44: Pest_Management\Fungicides | B44: 1 Spray | C44: 12100 | E44: 12
A45: Pest_Management\Fungicides | B45: 2 Sprays | C45: 24200 | E45: 24
A46: Pest_Management\Fungicides | B46: 3 Sprays | C46: 36300 | E46: 36
A47: Pest_Management\Rodent_Protection | B47: No | C47: 0 | E47: 0
A48: Pest_Management\Rodent_Protection | B48: Yes | C48: 16130 | E48: 12
A49: Pest_Management\Weed_Control | B49: 1 hand weeding during season | C49: 16130 | E49: 40
A50: Pest_Management\Weed_Control | B50: 2 hand weedings during season | C50: 32260 | E50: 75
A51: Pest_Management\Weed_Control | B51: 3 hand weedings during season | C51: 48390 | E51: 100
A52: Pest_Management\Weed_Control | B52: Pre herbicides followed by 1 hand weeding | C52: 28255 | E52: 75
A53: Pest_Management\Weed_Control | B53: Post herbicides followed by 1 hand weeding | C53: 28255 | E53: 75
A54: Storage\Method | B54: Sealed | C54: 32260 | E54: 8
A55: Storage\Method | B55: Traditional | C55: 4030 | E55: 4

Sheet Logos (hidden)

Sheet Pest_Report (hidden)
A1: Groundnut - Yield Risk Summary
A6: Crop\Planting Date | C6: Risk Points
B7: Feb 01 to Oct 31 | C7: 100 | D7: 5
B8: Jan 16 to Jan 31 | C8: 60
B9: Jan 01 to Jan 15 | C9: 40
B10: Dec 16 to Dec 31 | C10: 30
B11: Dec 01 to Dec 15 | C11: 20
B12: Nov 16 to Nov 30 | C12: 10
B13: Nov 01 to Nov 15* | C13: 5
A14: Crop\Plants per 1m of Row | C14: Risk Points
B15: 5 plants (20 cm spacing) | C15: 80 | D15: 5
B16: 7 plants (15 cm spacing) | C16: 40
B17: 10 plants (10 cm spacing, optimum) | C17: 5
A18: Crop\Seed Inoculant | C18: Risk Points
B19: No* | C19: 15 | D19: 15
B20: Yes | C20: 5
A21: Crop\Variety | C21: Risk Points
B22: Spanish*, Virginia Type | C22: 50 | D22: 50
B23: Spanish (GRDR), Virginia Type (GRDR) | C23: 30
B24: Spanish (LSR), Virginia Type (LSR) | C24: 15
B25: Spanish (GRDR,LSR), Virginia Type (GRDR,LSR) | C25: 5
A26: Field\Crop Rotation | C26: Risk Points
B27: Groundnut : Groundnut : Groundnut* | C27: 50 | D27: 50
B28: Soybean : Groundnut : Groundnut | C28: 45
B29: Soybean : Soybean : Groundnut | C29: 40
B30: Groundnut : Maize : Groundnut, Groundnut : Tobacco : Groundnut, Maize : Soybean : Groundnut | C30: 25
B31: Soybean : Maize : Groundnut | C31: 20
B32: Maize : Tobacco : Groundnut, Tobacco : Maize : Groundnut | C32: 15
B33: Maize : Maize : Groundnut | C33: 5
A34: Field\Fertilizer | C34: Risk Points
B35: None* | C35: 50 | D35: 50
B36: 50 kg/ha (Yara Legume) | C36: 0
B37: 100 kg/ha (Yara Legume) | C37: -50
B38: 150 kg/ha (Yara Legume) | C38: -100
B39: 200 kg/ha (Yara Legume) | C39: -120
A40: Field\Gypsum at Bloom | C40: Risk Points
B41: No | C41: 15 | D41: 5
B42: Yes* | C42: 5
A43: Field\Soil Fertility | C43: Risk Points
B44: Low | C44: 100 | D44: 5
B45: Moderate | C45: 50
B46: High* | C46: 5
A47: Field\Soil pH | C47: Risk Points
B48: 4.4 or lower, 7.0 or higher | C48: 100 | D48: 5
B49: 4.5 to 5.0 | C49: 50
B50: 5.1 to 5.5 | C50: 25
B51: 5.6 to 6.9* | C51: 5
A52: Field\Tillage | C52: Risk Points
B53: Flat Beds (Conventional) | C53: 20 | D53: 15
B54: Hand dug and ridging* | C54: 15
B55: Plough and hand ridging, Plough and harrow (Improved) | C55: 10
A56: Harvest\Digging Timimg | C56: Risk Points
B57: 21 Days Early | C57: 60 | D57: 5
B58: 21 Days Late | C58: 40
B59: 14 Days Early | C59: 25
B60: 14 Days Late | C60: 15
B61: 7 Days Early, 7 Days Late | C61: 10
B62: Optimum* | C62: 5
A63: Harvest\Method | C63: Risk Points
B64: Hand pulled | C64: 15 | D64: 5
B65: Hand dug with hoe*, Plow/Mechanical digger | C65: 5
A66: Pest Management\Aphid Spray | C66: Risk Points
B67: No | C67: 20 | D67: 10
B68: Yes* | C68: 10
A69: Pest Management\Bird Protection | C69: Risk Points
B70: No | C70: 25 | D70: 5
B71: Yes* | C71: 5
A72: Pest Management\Fungicides | C72: Risk Points
B73: None | C73: 50 | D73: 15
B74: 1 Spray | C74: 25
B75: 2 Sprays* | C75: 15
B76: 3 Sprays | C76: 5
A77: Pest Management\Rodent Protection | C77: Risk Points
B78: No | C78: 20 | D78: 5
B79: Yes* | C79: 5
A80: Pest Management\Weed Control | C80: Risk Points
B81: 1 hand weeding during season | C81: 50 | D81: 25
B82: 2 hand weedings during season* | C82: 25
B83: 3 hand weedings during season | C83: 15
B84: Post herbicides followed by 1 hand weeding | C84: 10
B85: Pre herbicides followed by 1 hand weeding | C85: 5
A87: * Selected options used in calculating pest risk. Note: Reduction in pest risk value by a control practice will be less under low risk conditions.

Sheet YLD (hidden)
A1: Yield
A2: Category | B2: Risk Level | C2: Risk Level Description | D2: Points | H2: Category | I2: Max | J2: Min | K2: Risk | L2: Selection
A3: Crop\Planting_Date | B3: 1 | C3: 032 to 304 | D3: 100 | H3: Crop\Planting_Date | I3: 100 | J3: 5 | K3: =getRiskValue("A:A",H3,J3,L3,"Date") -> 30 | L3: =IF(ISBLANK(sel_Crop\Planting_Date),"",sel_Crop\Planting_Date) -> 2021-12-20
A4: Crop\Planting_Date | B4: 2 | C4: 016 to 031 | D4: 60 | H4: Field\Soil_Fertility | I4: 100 | J4: 5 | K4: =getRiskValue("A:A",H4,J4,L4,"Single") -> 100 | L4: =IF(ISBLANK(sel_Field\Soil_Fertility),"",sel_Field\Soil_Fertility) -> Low
A5: Crop\Planting_Date | B5: 3 | C5: 001 to 015 | D5: 40 | H5: Field\Soil_pH | I5: 100 | J5: 5 | K5: =getRiskValue("A:A",H5,J5,L5,"pH") -> 5 | L5: =IF(ISBLANK(sel_Field\Soil_pH),"",sel_Field\Soil_pH) -> 5.6
A6: Crop\Planting_Date | B6: 4 | C6: 350 to 365 | D6: 30 | H6: Crop\Plants_per_1m_of_Row | I6: 80 | J6: 5 | K6: =getRiskValue("A:A",H6,J6,L6,"Single") -> 80 | L6: =IF(ISBLANK(sel_Crop\Plants_per_1m_of_Row),"",sel_Crop\Plants_per_1m_of_Row) -> 5 plants (20 cm spacing)
A7: Crop\Planting_Date | B7: 5 | C7: 335 to 349 | D7: 20 | H7: Harvest\Digging_Timimg | I7: 60 | J7: 5 | K7: 5 | L7: =IF(ISBLANK(sel_Harvest\Digging_Timimg),"",sel_Harvest\Digging_Timimg) -> Optimum
A8: Crop\Planting_Date | B8: 6 | C8: 320 to 334 | D8: 10 | H8: Crop\Variety | I8: 50 | J8: 5 | K8: 50 | L8: =IF(ISBLANK(sel_Crop\Variety),"",sel_Crop\Variety) -> Virginia Type
A9: Crop\Planting_Date | B9: 7 | C9: 305 to 319 | D9: 5 | H9: Field\Crop_Rotation | I9: 50 | J9: 5 | K9: 50 | L9: =IF(ISBLANK(sel_Field\Crop_Rotation),"",sel_Field\Crop_Rotation) -> Groundnut : Groundnut : Groundnut
A10: Crop\Plants_per_1m_of_Row | B10: 1 | C10: 5 plants (20 cm spacing) | D10: 80 | H10: Field\Fertilizer | I10: 50 | J10: -120 | K10: 50 | L10: =IF(ISBLANK(sel_Field\Fertilizer),"",sel_Field\Fertilizer) -> None
A11: Crop\Plants_per_1m_of_Row | B11: 2 | C11: 7 plants (15 cm spacing) | D11: 40 | H11: Pest_Management\Fungicides | I11: 50 | J11: 5 | K11: 25 | L11: =IF(ISBLANK(sel_Pest_Management\Fungicides),"",sel_Pest_Management\Fungicides) -> 1 Spray
A12: Crop\Plants_per_1m_of_Row | B12: 3 | C12: 10 plants (10 cm spacing, optimum) | D12: 5 | H12: Pest_Management\Weed_Control | I12: 50 | J12: 5 | K12: 25 | L12: =IF(ISBLANK(sel_Pest_Management\Weed_Control),"",sel_Pest_Management\Weed_Control) -> 2 hand weedings during season
A13: Crop\Seed_Inoculant | B13: 1 | C13: No | D13: 15 | H13: Pest_Management\Bird_Protection | I13: 25 | J13: 5 | K13: 25 | L13: =IF(ISBLANK(sel_Pest_Management\Bird_Protection),"",sel_Pest_Management\Bird_Protection) -> No
A14: Crop\Seed_Inoculant | B14: 2 | C14: Yes | D14: 5 | H14: Field\Tillage | I14: 20 | J14: 10 | K14: 15 | L14: =IF(ISBLANK(sel_Field\Tillage),"",sel_Field\Tillage) -> Hand dug and ridging
A15: Crop\Variety | B15: 1 | C15: Spanish|Virginia Type | D15: 50 | H15: Pest_Management\Aphid_Spray | I15: 20 | J15: 10 | K15: 20 | L15: =IF(ISBLANK(sel_Pest_Management\Aphid_Spray),"",sel_Pest_Management\Aphid_Spray) -> No
A16: Crop\Variety | B16: 2 | C16: Spanish (GRDR)|Virginia Type (GRDR) | D16: 30 | H16: Pest_Management\Rodent_Protection | I16: 20 | J16: 5 | K16: 20 | L16: =IF(ISBLANK(sel_Pest_Management\Rodent_Protection),"",sel_Pest_Management\Rodent_Protection) -> No
A17: Crop\Variety | B17: 3 | C17: Spanish (LSR)|Virginia Type (LSR) | D17: 15 | H17: Crop\Seed_Inoculant | I17: 15 | J17: 5 | K17: 15 | L17: =IF(ISBLANK(sel_Crop\Seed_Inoculant),"",sel_Crop\Seed_Inoculant) -> No
A18: Crop\Variety | B18: 4 | C18: Spanish (GRDR,LSR)|Virginia Type (GRDR,LSR) | D18: 5 | H18: Field\Gypsum_at_Bloom | I18: 15 | J18: 5 | K18: 15 | L18: =IF(ISBLANK(sel_Field\Gypsum_at_Bloom),"",sel_Field\Gypsum_at_Bloom) -> No
A19: Field\Crop_Rotation | B19: 1 | C19: Groundnut : Groundnut : Groundnut | D19: 50 | H19: Harvest\Method | I19: 15 | J19: 5 | K19: 5 | L19: =IF(ISBLANK(sel_Harvest\Method),"",sel_Harvest\Method) -> Hand dug with hoe
A20: Field\Crop_Rotation | B20: 2 | C20: Soybean : Groundnut : Groundnut | D20: 45
A21: Field\Crop_Rotation | B21: 3 | C21: Soybean : Soybean : Groundnut | D21: 40 | H21: Total | I21: =SUMIF(I3:I19,">0") -> 820 | J21: =SUMIF(J3:J19,">0") -> 90 | K21: =MAX(YLD_MinRiskIndex,SUM(K3:K19)) -> 535
A22: Field\Crop_Rotation | B22: 4 | C22: Groundnut : Maize : Groundnut|Groundnut : Tobacco : Groundnut|Maize : Soybean : Groundnut | D22: 25
A23: Field\Crop_Rotation | B23: 5 | C23: Soybean : Maize : Groundnut | D23: 20 | H23: High Risk Index | I23: 400
A24: Field\Crop_Rotation | B24: 6 | C24: Maize : Tobacco : Groundnut|Tobacco : Maize : Groundnut | D24: 15 | H24: Moderate Risk Index | I24: 200
A25: Field\Crop_Rotation | B25: 7 | C25: Maize : Maize : Groundnut | D25: 5
A26: Field\Fertilizer | B26: 1 | C26: None | D26: 50
A27: Field\Fertilizer | B27: 2 | C27: 50 kg/ha (Yara Legume) | D27: 0
A28: Field\Fertilizer | B28: 3 | C28: 100 kg/ha (Yara Legume) | D28: -50
A29: Field\Fertilizer | B29: 4 | C29: 150 kg/ha (Yara Legume) | D29: -100
A30: Field\Fertilizer | B30: 5 | C30: 200 kg/ha (Yara Legume) | D30: -120
A31: Field\Gypsum_at_Bloom | B31: 1 | C31: No | D31: 15
A32: Field\Gypsum_at_Bloom | B32: 2 | C32: Yes | D32: 5
A33: Field\Soil_Fertility | B33: 1 | C33: Low | D33: 100
A34: Field\Soil_Fertility | B34: 2 | C34: Moderate | D34: 50
A35: Field\Soil_Fertility | B35: 3 | C35: High | D35: 5
A36: Field\Soil_pH | B36: 1 | C36: 4.4 or lower|7.0 or higher | D36: 100
A37: Field\Soil_pH | B37: 2 | C37: 4.5 to 5.0 | D37: 50
A38: Field\Soil_pH | B38: 3 | C38: 5.1 to 5.5 | D38: 25
A39: Field\Soil_pH | B39: 4 | C39: 5.6 to 6.9 | D39: 5
A40: Field\Tillage | B40: 1 | C40: Flat Beds (Conventional) | D40: 20
A41: Field\Tillage | B41: 2 | C41: Hand dug and ridging | D41: 15
A42: Field\Tillage | B42: 3 | C42: Plough and hand ridging|Plough and harrow (Improved) | D42: 10
A43: Harvest\Digging_Timimg | B43: 1 | C43: 21 Days Early | D43: 60
A44: Harvest\Digging_Timimg | B44: 2 | C44: 21 Days Late | D44: 40
A45: Harvest\Digging_Timimg | B45: 3 | C45: 14 Days Early | D45: 25
A46: Harvest\Digging_Timimg | B46: 4 | C46: 14 Days Late | D46: 15
A47: Harvest\Digging_Timimg | B47: 5 | C47: 7 Days Early|7 Days Late | D47: 10
A48: Harvest\Digging_Timimg | B48: 6 | C48: Optimum | D48: 5
A49: Harvest\Method | B49: 1 | C49: Hand pulled | D49: 15
A50: Harvest\Method | B50: 2 | C50: Hand dug with hoe|Plow/Mechanical digger | D50: 5
A51: Pest_Management\Aphid_Spray | B51: 1 | C51: No | D51: 20
A52: Pest_Management\Aphid_Spray | B52: 2 | C52: Yes | D52: 10
A53: Pest_Management\Bird_Protection | B53: 1 | C53: No | D53: 25
A54: Pest_Management\Bird_Protection | B54: 2 | C54: Yes | D54: 5
A55: Pest_Management\Fungicides | B55: 1 | C55: None | D55: 50
A56: Pest_Management\Fungicides | B56: 2 | C56: 1 Spray | D56: 25
A57: Pest_Management\Fungicides | B57: 3 | C57: 2 Sprays | D57: 15
A58: Pest_Management\Fungicides | B58: 4 | C58: 3 Sprays | D58: 5
A59: Pest_Management\Rodent_Protection | B59: 1 | C59: No | D59: 20
A60: Pest_Management\Rodent_Protection | B60: 2 | C60: Yes | D60: 5
A61: Pest_Management\Weed_Control | B61: 1 | C61: 1 hand weeding during season | D61: 50
A62: Pest_Management\Weed_Control | B62: 2 | C62: 2 hand weedings during season | D62: 25
A63: Pest_Management\Weed_Control | B63: 3 | C63: 3 hand weedings during season | D63: 15
A64: Pest_Management\Weed_Control | B64: 4 | C64: Post herbicides followed by 1 hand weeding | D64: 10
A65: Pest_Management\Weed_Control | B65: 5 | C65: Pre herbicides followed by 1 hand weeding | D65: 5

Sheet AFLTXN (hidden)
A1: Aflatoxin
A2: Category | B2: Risk Level | C2: Risk Level Description | D2: Points | H2: Category | I2: Max | J2: Min | K2: Risk | L2: Selection
A3: Crop\Planting_Date | B3: 1 | C3: 032 to 304 | D3: 90 | H3: Harvest\Drying | I3: 160 | J3: 10 | K3: =getRiskValue("A:A",H3,J3,L3,"Single") -> 10 | L3: =IF(ISBLANK(sel_Harvest\Drying),"",sel_Harvest\Drying) -> Tarpulin
A4: Crop\Planting_Date | B4: 2 | C4: 016 to 031 | D4: 70 | H4: Storage\Method | I4: 160 | J4: 20 | K4: =getRiskValue("A:A",H4,J4,L4,"Single") -> 20 | L4: =IF(ISBLANK(sel_Storage\Method),"",sel_Storage\Method) -> Sealed
A5: Crop\Planting_Date | B5: 3 | C5: 001 to 015 | D5: 50 | H5: Crop\Planting_Date | I5: 90 | J5: 5 | K5: =getRiskValue("A:A",H5,J5,L5,"Date") -> 40 | L5: =IF(ISBLANK(sel_Crop\Planting_Date),"",sel_Crop\Planting_Date) -> 2021-12-20
A6: Crop\Planting_Date | B6: 4 | C6: 350 to 365 | D6: 40 | H6: Storage\Groundnut_Moisture | I6: 80 | J6: 5 | K6: =getRiskValue("A:A",H6,J6,L6,"Single") -> 5 | L6: =IF(ISBLANK(sel_Storage\Groundnut_Moisture),"",sel_Storage\Groundnut_Moisture) -> Less than 10%
A7: Crop\Planting_Date | B7: 5 | C7: 335 to 349 | D7: 20 | H7: Storage\Temperature | I7: 80 | J7: 20 | K7: =getRiskValue("A:A",H7,J7,L7,"Single") -> 20 | L7: =IF(ISBLANK(sel_Storage\Temperature),"",sel_Storage\Temperature) -> Lower than 28 °C
A8: Crop\Planting_Date | B8: 6 | C8: 320 to 334 | D8: 10 | H8: Harvest\Digging_Timimg | I8: 70 | J8: 5 | K8: =getRiskValue("A:A",H8,J8,L8,"Single") -> 10 | L8: =IF(ISBLANK(sel_Harvest\Digging_Timimg),"",sel_Harvest\Digging_Timimg) -> Optimum
A9: Crop\Planting_Date | B9: 7 | C9: 305 to 319 | D9: 5 | H9: Field\Crop_Rotation | I9: 50 | J9: 5 | K9: =getRiskValue("A:A",H9,J9,L9,"Single") -> 50 | L9: =IF(ISBLANK(sel_Field\Crop_Rotation),"",sel_Field\Crop_Rotation) -> Groundnut : Groundnut : Groundnut
A10: Crop\Plants_per_1m_of_Row | B10: 1 | C10: 5 plants (20 cm spacing) | D10: 30 | H10: Field\Soil_pH | I10: 50 | J10: 5 | K10: =getRiskValue("A:A",H10,J10,L10,"pH") -> 5 | L10: =IF(ISBLANK(sel_Field\Soil_pH),"",sel_Field\Soil_pH) -> 5.6
A11: Crop\Plants_per_1m_of_Row | B11: 2 | C11: 7 plants (15 cm spacing) | D11: 15 | H11: Field\Fertilizer | I11: 40 | J11: 5 | K11: =getRiskValue("A:A",H11,J11,L11,"Single") -> 40 | L11: =IF(ISBLANK(sel_Field\Fertilizer),"",sel_Field\Fertilizer) -> None
A12: Crop\Plants_per_1m_of_Row | B12: 3 | C12: 10 plants (10 cm spacing, optimum) | D12: 5 | H12: Pest_Management\Weed_Control | I12: 35 | J12: 5 | K12: 15 | L12: =IF(ISBLANK(sel_Pest_Management\Weed_Control),"",sel_Pest_Management\Weed_Control) -> 2 hand weedings during season
A13: Crop\Seed_Inoculant | B13: 1 | C13: No | D13: 15 | H13: Crop\Plants_per_1m_of_Row | I13: 30 | J13: 5 | K13: 30 | L13: =IF(ISBLANK(sel_Crop\Plants_per_1m_of_Row),"",sel_Crop\Plants_per_1m_of_Row) -> 5 plants (20 cm spacing)
A14: Crop\Seed_Inoculant | B14: 2 | C14: Yes | D14: 5 | H14: Crop\Variety | I14: 25 | J14: 5 | K14: 25 | L14: =IF(ISBLANK(sel_Crop\Variety),"",sel_Crop\Variety) -> Virginia Type
A15: Crop\Variety | B15: 1 | C15: Spanish|Virginia Type | D15: 25 | H15: Field\Gypsum_at_Bloom | I15: 25 | J15: 5 | K15: 25 | L15: =IF(ISBLANK(sel_Field\Gypsum_at_Bloom),"",sel_Field\Gypsum_at_Bloom) -> No
A16: Crop\Variety | B16: 2 | C16: Spanish (GRDR)|Virginia Type (GRDR) | D16: 20 | H16: Pest_Management\Bird_Protection | I16: 25 | J16: 5 | K16: 25 | L16: =IF(ISBLANK(sel_Pest_Management\Bird_Protection),"",sel_Pest_Management\Bird_Protection) -> No
A17: Crop\Variety | B17: 3 | C17: Spanish (LSR)|Virginia Type (LSR) | D17: 15 | H17: Field\Soil_Fertility | I17: 20 | J17: -20 | K17: 20 | L17: =IF(ISBLANK(sel_Field\Soil_Fertility),"",sel_Field\Soil_Fertility) -> Low
A18: Crop\Variety | B18: 4 | C18: Spanish (GRDR,LSR)|Virginia Type (GRDR,LSR) | D18: 5 | H18: Field\Tillage | I18: 20 | J18: 10 | K18: 15 | L18: =IF(ISBLANK(sel_Field\Tillage),"",sel_Field\Tillage) -> Hand dug and ridging
A19: Field\Crop_Rotation | B19: 1 | C19: Groundnut : Groundnut : Groundnut | D19: 50 | H19: Harvest\Method | I19: 20 | J19: 5 | K19: 20 | L19: =IF(ISBLANK(sel_Harvest\Method),"",sel_Harvest\Method) -> Hand dug with hoe
A20: Field\Crop_Rotation | B20: 2 | C20: Soybean : Groundnut : Groundnut | D20: 45 | H20: Pest_Management\Fungicides | I20: 20 | J20: 5 | K20: 15 | L20: =IF(ISBLANK(sel_Pest_Management\Fungicides),"",sel_Pest_Management\Fungicides) -> 1 Spray
A21: Field\Crop_Rotation | B21: 3 | C21: Soybean : Soybean : Groundnut | D21: 40 | H21: Pest_Management\Rodent_Protection | I21: 20 | J21: 5 | K21: 20 | L21: =IF(ISBLANK(sel_Pest_Management\Rodent_Protection),"",sel_Pest_Management\Rodent_Protection) -> No
A22: Field\Crop_Rotation | B22: 4 | C22: Groundnut : Maize : Groundnut|Groundnut : Tobacco : Groundnut|Maize : Soybean : Groundnut | D22: 25 | H22: Crop\Seed_Inoculant | I22: 15 | J22: 5 | K22: 15 | L22: =IF(ISBLANK(sel_Crop\Seed_Inoculant),"",sel_Crop\Seed_Inoculant) -> No
A23: Field\Crop_Rotation | B23: 5 | C23: Soybean : Maize : Groundnut | D23: 20 | H23: Pest_Management\Aphid_Spray | I23: 10 | J23: 5 | K23: 10 | L23: =IF(ISBLANK(sel_Pest_Management\Aphid_Spray),"",sel_Pest_Management\Aphid_Spray) -> No
A24: Field\Crop_Rotation | B24: 6 | C24: Maize : Tobacco : Groundnut|Tobacco : Maize : Groundnut | D24: 15
A25: Field\Crop_Rotation | B25: 7 | C25: Maize : Maize : Groundnut | D25: 5 | H25: Total | I25: =SUMIF(I3:I23,">0") -> 1045 | J25: =SUMIF(J3:J23,">0") -> 140 | K25: =MAX(AFLTXN_MinRiskIndex,SUM(K3:K23)) -> 435
A26: Field\Fertilizer | B26: 1 | C26: None | D26: 40
A27: Field\Fertilizer | B27: 2 | C27: 50 kg/ha (Yara Legume) | D27: 20 | H27: High Risk Index | I27: 600
A28: Field\Fertilizer | B28: 3 | C28: 100 kg/ha (Yara Legume) | D28: 15 | H28: Moderate Risk Index | I28: 320
A29: Field\Fertilizer | B29: 4 | C29: 150 kg/ha (Yara Legume)|200 kg/ha (Yara Legume) | D29: 5
A30: Field\Gypsum_at_Bloom | B30: 1 | C30: No | D30: 25
A31: Field\Gypsum_at_Bloom | B31: 2 | C31: Yes | D31: 5
A32: Field\Soil_Fertility | B32: 1 | C32: Low | D32: 20
A33: Field\Soil_Fertility | B33: 2 | C33: Moderate | D33: 0
A34: Field\Soil_Fertility | B34: 3 | C34: High | D34: -20
A35: Field\Soil_pH | B35: 1 | C35: 4.4 or lower|7.0 or higher | D35: 50
A36: Field\Soil_pH | B36: 2 | C36: 4.5 to 5.0 | D36: 30
A37: Field\Soil_pH | B37: 3 | C37: 5.1 to 5.5 | D37: 20
A38: Field\Soil_pH | B38: 4 | C38: 5.6 to 6.9 | D38: 5
A39: Field\Tillage | B39: 1 | C39: Flat Beds (Conventional) | D39: 20
A40: Field\Tillage | B40: 2 | C40: Hand dug and ridging | D40: 15
A41: Field\Tillage | B41: 3 | C41: Plough and hand ridging|Plough and harrow (Improved) | D41: 10
A42: Harvest\Digging_Timimg | B42: 1 | C42: 21 Days Late | D42: 70
A43: Harvest\Digging_Timimg | B43: 2 | C43: 14 Days Late | D43: 50
A44: Harvest\Digging_Timimg | B44: 3 | C44: 21 Days Early | D44: 30
A45: Harvest\Digging_Timimg | B45: 4 | C45: 14 Days Early|7 Days Late | D45: 20
A46: Harvest\Digging_Timimg | B46: 5 | C46: Optimum | D46: 10
A47: Harvest\Digging_Timimg | B47: 6 | C47: 7 Days Early | D47: 5
A48: Harvest\Drying | B48: 1 | C48: Ground | D48: 160
A49: Harvest\Drying | B49: 2 | C49: Cemented floor | D49: 50
A50: Harvest\Drying | B50: 3 | C50: Tarpulin | D50: 10
A51: Harvest\Method | B51: 1 | C51: Hand dug with hoe | D51: 20
A52: Harvest\Method | B52: 2 | C52: Plow/Mechanical digger | D52: 10
A53: Harvest\Method | B53: 3 | C53: Hand pulled | D53: 5
A54: Pest_Management\Aphid_Spray | B54: 1 | C54: No | D54: 10
A55: Pest_Management\Aphid_Spray | B55: 2 | C55: Yes | D55: 5
A56: Pest_Management\Bird_Protection | B56: 1 | C56: No | D56: 25
A57: Pest_Management\Bird_Protection | B57: 2 | C57: Yes | D57: 5
A58: Pest_Management\Fungicides | B58: 1 | C58: None | D58: 20
A59: Pest_Management\Fungicides | B59: 2 | C59: 1 Spray | D59: 15
A60: Pest_Management\Fungicides | B60: 3 | C60: 2 Sprays | D60: 10
A61: Pest_Management\Fungicides | B61: 4 | C61: 3 Sprays | D61: 5
A62: Pest_Management\Rodent_Protection | B62: 1 | C62: No | D62: 20
A63: Pest_Management\Rodent_Protection | B63: 2 | C63: Yes | D63: 5
A64: Pest_Management\Weed_Control | B64: 1 | C64: 1 hand weeding during season | D64: 35
A65: Pest_Management\Weed_Control | B65: 2 | C65: 2 hand weedings during season|3 hand weedings during season|Post herbicides followed by 1 hand weeding | D65: 15
A66: Pest_Management\Weed_Control | B66: 3 | C66: Pre herbicides followed by 1 hand weeding | D66: 5
A67: Storage\Groundnut_Moisture | B67: 1 | C67: Greater than 15% | D67: 80
A68: Storage\Groundnut_Moisture | B68: 2 | C68: 10 to 15% | D68: 20
A69: Storage\Groundnut_Moisture | B69: 3 | C69: Less than 10% | D69: 5
A70: Storage\Method | B70: 1 | C70: Traditional | D70: 160
A71: Storage\Method | B71: 2 | C71: Sealed | D71: 20
A72: Storage\Temperature | B72: 1 | C72: Higher than 32 °C | D72: 80
A73: Storage\Temperature | B73: 2 | C73: 28 to 32 °C | D73: 40
A74: Storage\Temperature | B74: 3 | C74: Lower than 28 °C | D74: 20
